bitfinex-derivatives/quotes_BTCF0:USTF0_20241103
["timestamp","ask_amount","ask_price","bid_price","bid_amount"]
[1730644524875,0.075591,67960.0,67957.0,0.073593]
[1730644525258,0.002,67960.0,67956.0,1.503407]
[1730644525466,0.073594,67957.0,67956.0,1.503407]
[1730644525869,0.3638,67960.0,67956.0,1.503407]
[1730644526072,0.3638,67960.0,67957.0,0.073594]
[1730644526568,0.438392,67960.0,67957.0,0.073594]
[1730644526870,0.004,67960.0,67956.0,1.501407]
[1730644527075,0.073594,67957.0,67956.0,1.501407]
[1730644527374,0.007,67960.0,67956.0,1.501407]
[1730644527673,0.007,67960.0,67956.0,1.575002]
[1730644527973,0.073594,67957.0,67956.0,1.575002]
[1730644528163,0.3648,67960.0,67956.0,1.501407]
[1730644528365,0.001,67960.0,67959.0,0.073592]
[1730644528574,0.004,67960.0,67959.0,0.073592]
[1730644529571,0.005,67960.0,67959.0,0.073592]
[1730644529973,0.36276,67973.0,67962.0,0.073588]
[1730644530173,0.073587,67964.0,67962.0,0.073588]
[1730644530772,0.077591,67960.0,67957.0,0.073593]
[1730644530972,0.077591,67960.0,67959.0,0.073592]
[1730644531771,0.077591,67960.0,67959.0,0.074592]
[1730644531772,0.007,67960.0,67959.0,0.074592]
[1730644532171,0.007,67960.0,67959.0,0.069292]
[1730644532568,0.006,67960.0,67959.0,0.068292]
[1730644532873,0.002,67960.0,67959.0,0.068292]
[1730644533466,0.073586,67965.0,67959.0,0.001]
[1730644533694,0.073586,67965.0,67962.0,0.073588]
[1730644533866,0.073588,67963.0,67959.0,0.001]
[1730644534063,0.073588,67963.0,67958.0,0.11742001]
[1730644534266,0.001,67960.0,67958.0,0.11742001]
[1730644534479,0.001,67960.0,67958.0,0.073593]
[1730644534676,0.073591,67960.0,67959.0,0.073592]
[1730644534979,0.076591,67960.0,67959.0,0.04394836]
[1730644535179,0.076591,67960.0,67958.0,0.04394836]
[1730644535180,0.073592,67959.0,67958.0,0.04394836]
[1730644535378,0.073592,67959.0,67958.0,0.11754136]
[1730644535767,0.073592,67959.0,67958.0,0.073593]
[1730644536378,0.003,67960.0,67956.0,1.56004664]
[1730644536577,0.003,67960.0,67958.0,0.05863964]
[1730644536774,0.073592,67959.0,67958.0,0.05863964]
[1730644536975,0.073594,67957.0,67956.0,0.001407]
[1730644537171,0.073597,67954.0,67953.0,0.05870746]
[1730644537375,0.0321,67956.0,67952.0,0.05870746]
[1730644537564,0.0321,67956.0,67950.0,0.07323903]
[1730644537969,0.105695,67956.0,67949.0,0.07323903]
[1730644538174,0.105695,67956.0,67947.0,1.5]
[1730644538175,0.105695,67956.0,67955.0,0.05879182]
[1730644538571,0.547175,67956.0,67955.0,0.05879182]
[1730644539278,0.073596,67955.0,67954.0,0.05879182]
[1730644539474,0.0341,67956.0,67953.0,0.05339182]
[1730644539779,0.073597,67954.0,67953.0,0.05339182]
[1730644540771,0.0736,67951.0,67950.0,0.07348977]
[1730644540972,0.0736,67951.0,67944.0,0.7223]
[1730644540973,0.073601,67950.0,67944.0,0.7223]
[1730644541191,0.434407,67945.0,67944.0,0.7223]
[1730644541670,0.875927,67945.0,67944.0,0.7223]
[1730644543075,0.878927,67945.0,67944.0,0.7303]
[1730644543475,0.90112268,67945.0,67944.0,0.7233]
[1730644543684,0.90712268,67945.0,67944.0,0.7243]
[1730644544767,0.90712268,67945.0,67944.0,0.002]
[1730644544972,0.83351568,67945.0,67929.0,0.00220805]
[1730644545273,0.073623,67930.0,67929.0,0.04620398]
[1730644545469,0.073623,67930.0,67929.0,0.00220805]
[1730644546288,0.073623,67930.0,67929.0,0.00820805]
[1730644547977,0.073623,67930.0,67929.0,0.006]
[1730644548376,0.09591598,67930.0,67929.0,0.006]
[1730644551686,0.3608,67931.0,67930.0,0.073623]
[1730644551885,0.434422,67931.0,67930.0,0.073623]
[1730644552181,0.434422,67931.0,67930.0,0.11761893]
[1730644552568,0.02259038,67939.0,67930.0,0.073623]
[1730644552776,0.3608,67941.0,67935.0,0.073617]
[1730644552976,0.3608,67941.0,67930.0,0.25624239]
[1730644553184,0.073616,67937.0,67936.0,1.5]
[1730644553574,0.073616,67937.0,67936.0,1.573617]
[1730644553780,0.073616,67937.0,67936.0,1.5]
[1730644554291,0.076616,67937.0,67936.0,1.5]
[1730644555089,0.076616,67937.0,67930.0,0.0336]
[1730644555090,0.073622,67931.0,67930.0,0.0336]
[1730644555392,0.073622,67931.0,67930.0,0.107223]
[1730644555686,0.073622,67931.0,67930.0,1.607223]
[1730644556690,0.073622,67931.0,67930.0,1.610223]
[1730644559492,0.073622,67931.0,67930.0,1.65421893]
[1730644560691,0.3608,67933.0,67932.0,0.073621]
[1730644561886,0.3618,67933.0,67932.0,0.11761693]
[1730644562088,0.43542,67933.0,67932.0,0.11761693]
[1730644562587,0.3618,67933.0,67932.0,0.073621]
[1730644563088,0.001,67933.0,67932.0,0.073621]
[1730644563286,0.001,67933.0,67932.0,0.074621]
[1730644564390,0.3608,67948.0,67944.0,0.073608]
[1730644564594,0.36268001,67948.0,67943.0,0.04399756]
[1730644564797,0.36268001,67948.0,67940.0,0.073612]
[1730644564798,0.073611,67941.0,67940.0,0.073612]
[1730644565484,0.073613,67940.0,67938.0,0.073613]
[1730644565690,0.073613,67939.0,67938.0,0.14710277]
[1730644565887,0.073613,67939.0,67938.0,0.23198729]
[1730644566086,0.073613,67939.0,67938.0,0.15863039]
[1730644566689,0.07361,67943.0,67938.0,0.08501739]
[1730644566891,0.07361,67943.0,67942.0,0.07361]
[1730644567093,0.07361,67943.0,67942.0,0.1470055]
[1730644567292,0.07361,67943.0,67942.0,0.07361]
[1730644567595,0.07361,67943.0,67942.0,0.15861642]
[1730644568290,0.07961,67943.0,67942.0,0.23202792]
[1730644568596,0.07961,67943.0,67942.0,0.15861642]
[1730644568789,0.006,67943.0,67942.0,0.15861642]
[1730644568990,0.00220863,67945.0,67942.0,0.15860789]
[1730644569183,0.073608,67944.0,67943.0,0.15842524]
[1730644569588,0.073608,67944.0,67943.0,0.08499789]
[1730644570796,0.076608,67944.0,67943.0,0.08499789]
[1730644571589,0.081608,67944.0,67943.0,0.08499789]
[1730644572199,0.076608,67944.0,67943.0,0.08499789]
[1730644572499,0.082608,67944.0,67943.0,0.08499789]
[1730644572999,0.084608,67944.0,67943.0,0.15844443]
[1730644573501,0.084608,67944.0,67943.0,0.07344654]
[1730644573697,0.078608,67944.0,67943.0,0.07344654]
[1730644573896,0.085608,67944.0,67943.0,0.07444654]
[1730644575897,0.527168,67944.0,67943.0,0.001]
[1730644576088,0.073625,67928.0,67927.0,0.073626]
[1730644576288,0.643688,67944.0,67921.0,0.47732]
[1730644576289,0.073631,67924.0,67923.0,0.07363]
[1730644576892,0.073625,67929.0,67928.0,0.073623]
[1730644577092,0.3608,67931.0,67930.0,0.073623]
[1730644577288,0.434422,67931.0,67930.0,0.073623]
[1730644577795,0.36496863,67945.0,67940.0,0.073612]
[1730644577996,0.36300863,67945.0,67940.0,0.073612]
[1730644578195,0.073612,67941.0,67940.0,0.073612]
[1730644578714,0.073619,67934.0,67927.0,0.082626]
[1730644578906,0.07463,67924.0,67923.0,0.017]
[1730644579597,0.07463,67924.0,67923.0,0.11746706]
[1730644579997,0.07363,67924.0,67923.0,0.10746706]
[1730644580504,0.07363,67924.0,67923.0,0.15895214]
[1730644580693,0.07463,67924.0,67923.0,0.16595214]
[1730644581094,0.07463,67924.0,67923.0,0.17595214]
[1730644581095,0.07563,67924.0,67923.0,0.17595214]
[1730644582099,0.07563,67924.0,67923.0,0.10232114]
[1730644583205,0.07563,67924.0,67923.0,0.017]
[1730644584504,0.07563,67924.0,67923.0,0.10265233]
[1730644587899,0.07563,67924.0,67923.0,0.017]
[1730644588595,0.07563,67924.0,67923.0,0.10261231]
[1730644589197,0.07563,67924.0,67923.0,0.090631]
[1730644589804,0.07563,67924.0,67923.0,0.017]
[1730644592005,0.10733,67924.0,67923.0,0.017]
[1730644593316,0.46813,67924.0,67923.0,0.017]
[1730644593698,0.43643,67924.0,67923.0,0.017]
[1730644594018,0.43643,67924.0,67923.0,0.090631]
[1730644594710,0.002,67924.0,67923.0,0.39719801]
[1730644594905,0.002,67924.0,67923.0,0.48534213]
[1730644595303,0.002,67924.0,67923.0,0.39719801]
[1730644595510,0.073616,67937.0,67925.0,0.073628]
[1730644595720,0.073616,67937.0,67936.0,0.073617]
[1730644596417,0.073619,67935.0,67933.0,0.07362]
[1730644596608,0.07362,67933.0,67925.0,0.08804004]
[1730644596813,0.434427,67926.0,67925.0,0.008]
[1730644597014,0.434427,67926.0,67925.0,0.09352483]
[1730644597209,0.434427,67926.0,67923.0,0.07363]
[1730644597522,0.073629,67925.0,67924.0,0.08560363]
[1730644598423,0.073629,67925.0,67920.0,0.38355951]
[1730644598617,0.073633,67921.0,67920.0,0.3608]
[1730644598817,0.073633,67921.0,67920.0,0.08568527]
[1730644599019,0.073629,67925.0,67913.0,0.08804004]
[1730644599326,0.073639,67916.0,67915.0,0.073639]
[1730644599511,0.073639,67916.0,67915.0,0.15959498]
[1730644599715,0.073639,67916.0,67915.0,0.24763502]
[1730644599911,0.073639,67916.0,67915.0,0.15959498]
[1730644600517,0.073639,67916.0,67915.0,0.17407936]
[1730644600818,0.073639,67916.0,67915.0,0.08595598]
[1730644601020,0.073639,67916.0,67915.0,0.09995598]
[1730644601735,0.074639,67916.0,67915.0,0.11395598]
[1730644603819,0.074639,67916.0,67915.0,0.18759498]
[1730644604521,0.001,67916.0,67915.0,0.95201577]
[1730644604720,0.073622,67931.0,67930.0,0.073623]
[1730644605222,0.38398851,67936.0,67930.0,0.08570096]
[1730644605223,0.073619,67934.0,67930.0,0.08570096]
[1730644605432,0.073619,67934.0,67933.0,0.07362]
[1730644605631,0.07361,67943.0,67942.0,0.073609]
[1730644606129,0.07361,67943.0,67942.0,0.23220368]
[1730644606327,0.07361,67943.0,67942.0,1.73220368]
[1730644606633,0.07361,67943.0,67942.0,0.2320401]
[1730644606940,0.07961,67943.0,67942.0,0.2330401]
[1730644607233,0.07361,67943.0,67942.0,0.2320401]
[1730644607421,0.07961,67943.0,67942.0,0.14807349]
[1730644607622,0.006,67943.0,67942.0,0.074609]
[1730644607929,0.014,67943.0,67942.0,0.14907349]
[1730644608131,0.014,67943.0,67942.0,0.075609]
[1730644608322,0.014,67943.0,67942.0,0.16052794]
[1730644608523,0.014,67943.0,67942.0,0.1490125]
[1730644608722,0.013,67943.0,67942.0,0.1490125]
[1730644608924,0.013,67943.0,67942.0,0.1604849]
[1730644609422,0.00220863,67945.0,67942.0,0.15826546]
[1730644609623,0.013,67943.0,67942.0,0.29614584]
[1730644609827,0.013,67943.0,67942.0,0.46902626]
[1730644610024,0.007,67943.0,67942.0,0.46902626]
[1730644610241,0.012,67943.0,67942.0,0.38084693]
[1730644611040,0.005,67943.0,67942.0,0.37984693]
[1730644611230,0.005,67943.0,67942.0,0.38084693]
[1730644611937,0.012,67943.0,67942.0,0.38084693]
[1730644612728,0.012,67943.0,67942.0,0.82240693]
[1730644615239,0.3608,67958.0,67942.0,0.82240693]
[1730644615542,0.3608,67958.0,67957.0,0.11754946]
[1730644615729,0.3608,67958.0,67957.0,0.073594]
[1730644617043,0.3668,67958.0,67957.0,0.074594]
[1730644617434,0.3668,67958.0,67957.0,0.04490608]
[1730644617628,0.440393,67958.0,67957.0,0.001]
[1730644617942,0.441393,67958.0,67957.0,0.001]
[1730644618338,0.441393,67958.0,67957.0,0.074594]
[1730644618540,0.440393,67958.0,67957.0,0.074594]
[1730644618742,0.440393,67958.0,67957.0,0.075594]
[1730644619429,0.3668,67958.0,67957.0,0.075594]
[1730644620738,0.440393,67958.0,67957.0,0.002]
[1730644623846,0.441393,67958.0,67957.0,0.002]
[1730644624040,0.436393,67958.0,67957.0,0.002]
[1730644624352,0.877833,67958.0,67957.0,0.002]
[1730644624544,0.876833,67958.0,67957.0,0.001]
[1730644624737,0.877833,67958.0,67957.0,0.002]
[1730644624934,0.436393,67958.0,67957.0,0.002]
[1730644626248,0.435393,67958.0,67957.0,0.002]
[1730644627150,0.434393,67958.0,67957.0,0.074594]
[1730644627336,0.435393,67958.0,67957.0,0.075594]
[1730644628642,0.3618,67958.0,67957.0,0.075594]
[1730644629249,0.001,67958.0,67957.0,0.075594]
[1730644629456,0.001,67958.0,67957.0,0.33913143]
[1730644629654,0.001,67958.0,67957.0,0.73666404]
[1730644630951,0.001,67958.0,67957.0,0.29522404]
[1730644631747,0.001,67958.0,67957.0,0.075594]
[1730644632445,0.3608,67971.0,67957.0,1.09765183]
[1730644632651,0.41252,67986.0,67965.0,0.04395567]
[1730644632652,0.3608,67982.0,67965.0,0.04395567]
[1730644632855,0.073571,67979.0,67976.0,0.073573]
[1730644633154,0.073572,67978.0,67977.0,0.073572]
[1730644634657,0.074572,67978.0,67977.0,0.074572]
[1730644635448,0.002,67978.0,67977.0,0.075572]
[1730644636457,0.3608,67983.0,67977.0,0.002]
[1730644636661,0.074571,67978.0,67977.0,0.002]
[1730644639070,0.073571,67978.0,67977.0,0.001]
[1730644639259,0.07357,67979.0,67978.0,0.073571]
[1730644639567,0.0682,67982.0,67977.0,0.002]
[1730644639568,0.073571,67978.0,67977.0,0.002]
[1730644639760,0.073571,67978.0,67977.0,0.001]
[1730644640062,0.074571,67978.0,67977.0,0.002]
[1730644640456,0.074571,67978.0,67977.0,0.001]
[1730644640958,0.073578,67972.0,67971.0,0.073578]
[1730644641751,0.3608,67973.0,67966.0,0.073583]
[1730644641953,0.3608,67973.0,67964.0,0.7223]
[1730644642162,0.073585,67965.0,67964.0,0.7223]
[1730644643869,0.074585,67965.0,67964.0,0.7223]
[1730644644371,0.515985,67965.0,67964.0,0.7223]
[1730644645474,0.53888226,67965.0,67964.0,0.7223]
[1730644645668,0.53888226,67965.0,67964.0,0.7233]
[1730644645868,0.53788226,67965.0,67964.0,0.7233]
[1730644646060,0.53888226,67965.0,67964.0,0.7243]
[1730644646262,0.53888226,67965.0,67964.0,0.7233]
[1730644646564,0.53888226,67965.0,67964.0,0.7243]
[1730644647482,0.83888226,67965.0,67964.0,0.40816]
[1730644647774,0.83888226,67965.0,67964.0,0.30406]
[1730644648760,0.83888226,67965.0,67964.0,0.30506]
[1730644650171,0.83888226,67965.0,67964.0,0.25250561]
[1730644650572,0.83888226,67965.0,67964.0,0.25350561]
[1730644650967,0.83888226,67965.0,67964.0,0.17317361]
[1730644651167,0.83988226,67965.0,67964.0,0.35029161]
[1730644651375,0.20944226,67965.0,67964.0,0.35029161]
[1730644651772,0.65084226,67965.0,67964.0,0.34929161]
[1730644651976,0.65284226,67965.0,67964.0,0.35029161]
[1730644652775,0.65284226,67965.0,67964.0,0.34929161]
[1730644652968,0.65184226,67965.0,67964.0,0.35029161]
[1730644653774,0.54088226,67965.0,67964.0,0.35029161]
[1730644653974,0.65184226,67965.0,67964.0,0.35029161]
[1730644654274,0.21044226,67965.0,67964.0,0.35029161]
[1730644654475,0.65184226,67965.0,67964.0,0.35029161]
[1730644654676,0.65084226,67965.0,67964.0,0.34929161]
[1730644654877,0.65184226,67965.0,67964.0,0.35029161]
[1730644655073,0.65084226,67965.0,67964.0,0.35029161]
[1730644655877,0.64984226,67965.0,67964.0,0.34929161]
[1730644656076,0.65084226,67965.0,67964.0,0.35029161]
[1730644656782,0.64984226,67965.0,67964.0,0.34929161]
[1730644657087,1.37244226,67965.0,67964.0,0.35029161]
[1730644659078,1.37244226,67965.0,67964.0,0.34929161]
[1730644659079,1.37144226,67965.0,67964.0,0.34929161]
[1730644659278,1.37244226,67965.0,67964.0,0.35029161]
[1730644660280,1.37172226,67965.0,67964.0,0.35029161]
[1730644661392,0.93032226,67965.0,67964.0,0.35029161]
[1730644662085,0.82008226,67965.0,67964.0,0.35029161]
[1730644662283,0.797185,67965.0,67964.0,0.35029161]
[1730644662678,0.797185,67965.0,67964.0,0.42387761]
[1730644663079,0.7236,67965.0,67964.0,0.42387761]
[1730644663682,0.797185,67965.0,67964.0,0.42387761]
[1730644665996,0.002,67965.0,67964.0,0.42387761]
[1730644666291,0.3608,67969.0,67965.0,0.073584]
[1730644666686,0.073585,67966.0,67965.0,0.073584]
[1730644667292,0.073585,67966.0,67965.0,0.11753967]
[1730644667686,0.073585,67966.0,67965.0,0.073584]
[1730644667887,0.073585,67966.0,67965.0,0.075584]
[1730644668095,0.073585,67966.0,67965.0,0.11958923]
[1730644669284,0.073585,67966.0,67965.0,0.075584]
[1730644669487,0.073585,67966.0,67965.0,0.15150626]
[1730644669788,0.073585,67966.0,67965.0,0.107484]
[1730644670195,0.073585,67966.0,67965.0,0.15150626]
[1730644671897,0.073585,67966.0,67965.0,0.107484]
[1730644672899,0.43438,67970.0,67969.0,0.073581]
[1730644673505,0.3608,67970.0,67965.0,0.0339]
[1730644673701,0.073584,67966.0,67965.0,0.0339]
[1730644674089,0.073584,67966.0,67965.0,0.0319]
[1730644674899,0.073584,67966.0,67965.0,0.0329]
[1730644676404,0.073584,67966.0,67965.0,0.0339]
[1730644676796,0.073584,67966.0,67965.0,0.0329]
[1730644676997,0.074584,67966.0,67965.0,0.0339]
[1730644677405,0.09716962,67966.0,67965.0,0.0339]
[1730644680608,0.074584,67966.0,67965.0,0.0339]
[1730644681000,0.074584,67966.0,67965.0,0.07795382]
[1730644681201,0.074584,67966.0,67965.0,0.0339]
[1730644681921,0.074584,67966.0,67965.0,0.002]
[1730644682408,0.09611682,67966.0,67965.0,0.001]
[1730644682619,0.09711682,67966.0,67965.0,0.002]
[1730644682797,0.09711682,67966.0,67964.0,0.34829161]
[1730644682798,0.073585,67965.0,67964.0,0.34829161]
[1730644682994,0.514985,67965.0,67964.0,0.25392536]
[1730644683196,0.514985,67965.0,67952.0,0.04406072]
[1730644683197,0.814985,67965.0,67952.0,0.04406072]
[1730644683397,0.795198,67953.0,67952.0,0.04406072]
[1730644683598,0.795198,67953.0,67948.0,0.04406072]
[1730644683599,0.8318,67953.0,67948.0,0.04406072]
[1730644683798,0.073604,67948.0,67946.0,0.04406072]
[1730644684098,0.3608,67947.0,67944.0,0.04406072]
[1730644684303,0.073607,67945.0,67944.0,0.04406072]
[1730644685010,0.3608,67947.0,67943.0,0.04406072]
[1730644685310,0.073609,67943.0,67942.0,0.04626836]
[1730644685700,0.434409,67943.0,67941.0,0.0440493]
[1730644685896,0.434409,67943.0,67939.0,0.0440493]
[1730644686203,0.434409,67943.0,67935.0,0.05872303]
[1730644686204,0.073614,67938.0,67937.0,0.0440493]
[1730644686999,0.073615,67937.0,67936.0,0.0440493]
[1730644687298,0.073617,67936.0,67935.0,0.0440493]
[1730644687802,0.3608,67937.0,67934.0,0.0440493]
[1730644688002,0.3608,67937.0,67931.0,0.09290756]
[1730644688314,0.073619,67934.0,67933.0,0.04401123]
[1730644688603,0.073621,67932.0,67931.0,0.0343]
[1730644689211,0.073621,67932.0,67931.0,0.07828029]
[1730644689400,0.073621,67932.0,67931.0,0.0343]
[1730644689998,0.074621,67932.0,67931.0,0.0473]
[1730644690211,0.074621,67932.0,67931.0,0.0603]
[1730644691112,0.075621,67932.0,67931.0,0.0603]
[1730644691404,0.075621,67932.0,67931.0,0.026]
[1730644696308,0.002,67932.0,67931.0,0.099622]
[1730644698919,0.00220853,67946.0,67940.0,0.073612]
[1730644699118,0.073609,67943.0,67940.0,0.073612]
[1730644699624,0.073609,67943.0,67940.0,1.573612]
[1730644700215,0.3618,67941.0,67940.0,1.579612]
[1730644700409,0.3618,67941.0,67940.0,1.583612]
[1730644700614,0.3618,67941.0,67940.0,1.6065265]
[1730644701511,0.001,67941.0,67940.0,1.6065265]
[1730644701905,0.001,67941.0,67940.0,0.1065265]
[1730644703417,0.00220853,67946.0,67940.0,0.1065265]
[1730644703612,0.00220853,67946.0,67945.0,0.073607]
[1730644704015,0.07581453,67946.0,67945.0,0.11756737]
[1730644704318,0.07581453,67946.0,67945.0,0.073607]
[1730644704614,0.00220853,67946.0,67945.0,0.073607]
[1730644705212,0.00220853,67946.0,67945.0,0.075607]
[1730644706017,0.00220853,67946.0,67945.0,0.13422097]
[1730644706912,0.00220853,67946.0,67945.0,0.075607]
[1730644707118,0.07581453,67946.0,67945.0,0.075607]
[1730644708117,0.07581453,67946.0,67945.0,0.002]
[1730644708818,0.07581453,67946.0,67945.0,0.04600592]
[1730644709009,0.07581453,67946.0,67945.0,0.002]
[1730644709315,0.07581453,67946.0,67945.0,0.075607]
[1730644709516,0.00220853,67946.0,67945.0,0.13425143]
[1730644709724,0.00220853,67946.0,67945.0,0.075607]
[1730644709910,0.00220853,67946.0,67945.0,0.11962543]
[1730644710108,0.00220853,67946.0,67945.0,0.075607]
[1730644711418,0.3608,67955.0,67953.0,0.073597]
[1730644711419,0.073597,67954.0,67953.0,0.073597]
[1730644712821,0.081597,67954.0,67953.0,0.074597]
[1730644713023,0.087597,67954.0,67953.0,0.075597]
[1730644713915,0.087597,67954.0,67953.0,0.002]
[1730644714327,0.121697,67954.0,67953.0,0.002]
[1730644715128,0.121697,67954.0,67937.0,0.0671]
[1730644715129,0.073605,67948.0,67938.0,0.04403143]
[1730644715314,0.073614,67939.0,67938.0,0.073614]
[1730644715628,0.073614,67938.0,67937.0,0.04403143]
[1730644716322,0.3608,67941.0,67936.0,0.40483143]
[1730644716530,0.073615,67937.0,67936.0,0.40483143]
[1730644717116,0.073615,67937.0,67936.0,0.40484766]
[1730644717930,0.073615,67937.0,67936.0,0.3608]
[1730644718131,0.074615,67937.0,67936.0,0.3688]
[1730644719021,0.075615,67937.0,67936.0,0.3788]
[1730644721525,0.075615,67937.0,67936.0,0.018]
[1730644721728,0.185735,67937.0,67936.0,0.06206417]
[1730644721928,0.185735,67937.0,67936.0,0.018]
[1730644722130,0.184935,67937.0,67936.0,0.018]
[1730644722320,0.926535,67937.0,67933.0,0.04406417]
[1730644722519,0.07362,67933.0,67926.0,0.04406417]
[1730644722722,0.3608,67927.0,67921.0,0.04407007]
[1730644722938,0.3608,67927.0,67915.0,0.05874471]
[1730644722939,0.073634,67920.0,67915.0,0.05874471]
[1730644723246,0.073645,67910.0,67909.0,0.05872657]
[1730644723449,0.073649,67906.0,67905.0,0.05872657]
[1730644723730,0.07365,67905.0,67904.0,1.5337]
[1730644724135,0.3608,67910.0,67900.0,0.1]
[1730644724323,0.073655,67901.0,67900.0,0.1]
[1730644724522,0.073655,67901.0,67900.0,1.6]
[1730644725939,0.073655,67901.0,67900.0,0.1]
[1730644726326,0.074655,67901.0,67900.0,0.104]
[1730644726937,0.078655,67901.0,67900.0,0.1]
[1730644727240,0.188815,67901.0,67900.0,0.1]
[1730644727441,0.630655,67901.0,67900.0,0.1]
[1730644727740,0.630655,67901.0,67900.0,0.104]
[1730644728545,0.998455,67901.0,67900.0,0.101]
[1730644729327,0.998455,67901.0,67900.0,0.0497]
[1730644729842,1.298455,67901.0,67900.0,0.0497]
[1730644730337,0.998455,67901.0,67900.0,0.0497]
[1730644730545,0.556615,67901.0,67900.0,0.0497]
[1730644737862,0.446455,67901.0,67900.0,0.0497]
[1730644738052,0.446455,67901.0,67900.0,0.123356]
[1730644738448,0.3728,67901.0,67900.0,0.123356]
[1730644738750,0.3728,67901.0,67900.0,1.623356]
[1730644740269,0.556655,67901.0,67900.0,0.0497]
[1730644741951,0.3728,67901.0,67900.0,0.123356]
[1730644742162,0.3215,67901.0,67900.0,0.123356]
[1730644743754,0.2701,67901.0,67900.0,0.123356]
[1730644743954,0.007,67901.0,67900.0,0.484156]
[1730644744664,0.434443,67912.0,67901.0,0.073654]
[1730644744857,0.073643,67912.0,67910.0,0.073645]
[1730644745759,0.02288459,67917.0,67910.0,0.073645]
[1730644745965,0.008,67912.0,67901.0,0.031]
[1730644746163,0.073651,67905.0,67904.0,0.073651]
[1730644746755,0.073651,67905.0,67901.0,0.104654]
[1730644746958,0.073651,67904.0,67901.0,0.104654]
[1730644747162,0.073651,67904.0,67902.0,1.5]
[1730644747361,0.073651,67904.0,67903.0,0.073652]
[1730644748353,0.073651,67904.0,67902.0,1.5]
[1730644748354,0.001,67905.0,67902.0,1.5]
[1730644748666,0.3608,67910.0,67902.0,1.5]
[1730644748667,0.073652,67903.0,67902.0,1.5]
[1730644749058,0.3608,67903.0,67901.0,0.032]
[1730644749259,0.073653,67902.0,67901.0,0.032]
[1730644749564,0.073653,67902.0,67901.0,0.031]
[1730644749758,0.3608,67903.0,67902.0,0.073653]
[1730644749961,0.3658,67903.0,67902.0,0.073653]
[1730644750670,0.005,67903.0,67902.0,0.073653]
[1730644750864,0.11232965,67915.0,67903.0,0.4418]
[1730644751058,0.11232965,67915.0,67913.0,0.073641]
[1730644751259,0.07584965,67915.0,67913.0,0.073641]
[1730644751870,0.073644,67911.0,67908.0,0.073646]
[1730644752083,0.3608,67924.0,67901.0,0.05356539]
[1730644752084,0.3608,67932.0,67909.0,0.11562]
[1730644752256,0.36300917,67941.0,67940.0,0.073612]
[1730644752461,0.3608,67955.0,67940.0,0.3608]
[1730644752660,0.3608,67955.0,67954.0,0.073597]
[1730644752865,0.3608,67955.0,67941.0,1.5]
[1730644753064,0.073603,67949.0,67944.0,0.073608]
[1730644753264,0.3608,67945.0,67931.0,0.3608]
[1730644753461,0.073622,67931.0,67930.0,0.02287376]
[1730644753764,0.073622,67931.0,67930.0,1.5]
[1730644754270,0.073622,67931.0,67928.0,0.073625]
[1730644754461,0.073622,67931.0,67922.0,0.3608]
[1730644754462,0.073622,67931.0,67929.0,0.073624]
[1730644754661,0.073622,67931.0,67922.0,0.3608]
[1730644754873,0.073622,67931.0,67930.0,0.073623]
[1730644755064,0.073626,67928.0,67926.0,0.073627]
[1730644755468,0.3608,67933.0,67926.0,0.073627]
[1730644755469,0.073626,67927.0,67926.0,0.073627]
[1730644755668,0.07363,67924.0,67918.0,0.0318]
[1730644755873,0.07363,67924.0,67923.0,0.073631]
[1730644756770,0.07463,67924.0,67923.0,0.073631]
[1730644757272,0.073633,67921.0,67918.0,0.0318]
[1730644757474,0.073634,67920.0,67919.0,0.073635]
[1730644759073,0.075634,67920.0,67919.0,0.073635]
[1730644759666,0.004,67920.0,67919.0,0.073635]
[1730644760171,0.11008,67929.0,67918.0,0.0318]
[1730644760372,0.004,67920.0,67918.0,0.0318]
[1730644760573,0.004,67920.0,67919.0,0.073635]
[1730644761777,0.003,67920.0,67919.0,0.073635]
[1730644762076,0.004,67920.0,67919.0,0.079635]
[1730644762474,0.073632,67922.0,67921.0,0.073633]
[1730644762983,0.073634,67920.0,67919.0,0.004]
[1730644763273,0.073634,67920.0,67919.0,0.001]
[1730644765074,0.073636,67918.0,67917.0,0.00220843]
[1730644765577,0.5518,67918.0,67902.0,0.0324]
[1730644765876,0.3608,67906.0,67900.0,0.0487]
[1730644766085,0.434449,67906.0,67900.0,0.0487]
[1730644766272,0.434449,67906.0,67904.0,0.07365]
[1730644766581,0.3608,67906.0,67901.0,0.073654]
[1730644766779,0.3608,67906.0,67900.0,0.0487]
[1730644766780,0.073655,67901.0,67900.0,0.0487]
[1730644767381,0.073655,67901.0,67900.0,0.0587]
[1730644767677,0.073655,67901.0,67900.0,0.132356]
[1730644768776,0.073655,67901.0,67900.0,0.0587]
[1730644769485,0.074655,67901.0,67900.0,0.0697]
[1730644771276,0.09750127,67901.0,67900.0,0.0697]
[1730644771677,0.184775,67901.0,67900.0,0.0697]
[1730644771881,0.11112,67901.0,67900.0,0.143356]
[1730644772474,0.001,67901.0,67900.0,0.143356]
[1730644775783,0.44284,67901.0,67900.0,0.0163]
[1730644775969,0.44284,67901.0,67886.0,0.00220924]
[1730644776172,0.07367,67887.0,67886.0,0.00220924]
[1730644777681,0.073665,67891.0,67890.0,0.073666]
[1730644778880,0.074665,67891.0,67890.0,0.075666]
[1730644779595,0.074665,67891.0,67890.0,0.078666]
[1730644781983,0.001,67891.0,67890.0,0.078666]
[1730644783794,0.001,67891.0,67890.0,0.520546]
[1730644784091,0.001,67891.0,67890.0,0.078666]
[1730644784392,0.001,67891.0,67890.0,0.520546]
[1730644784780,0.001,67891.0,67890.0,0.54310463]
[1730644785685,0.001,67891.0,67890.0,0.62933316]